[Event "Titled Tuesday Blitz June 27 Late 2023"]
[White "Arias Igual, Alejandro"]
[Black "Barp, Alberto"]
[WhiteFideId "2254905"]
[BlackFideId "872555"]
[WhiteElo "2383"]
[BlackElo "2711"]
[Result "0-1"]
[Round "1"]
[TimeControl "180+2"]
[Date "2023.06.27"]
[WhiteClock "0:00:51"]
[BlackClock "0:01:26"]
[Board "92"]

1. d4 {[%clk 0:02:57]}  d5 {[%clk 0:02:58]} 2. Bf4 {[%clk 0:02:57]}  c5 {[%clk 0:02:56]} 3. e3 {[%clk 0:02:58]}  Nc6 {[%clk 0:02:56]} 4. c3 {[%clk 0:02:57]}  Nf6 {[%clk 0:02:56]} 5. Nd2 {[%clk 0:02:56]}  cxd4 {[%clk 0:02:45]} 6. exd4 {[%clk 0:02:56]}  Bg4 {[%clk 0:02:43]} 7. Qb3 {[%clk 0:02:51]}  Qd7 {[%clk 0:02:40]} 8. Ngf3 {[%clk 0:02:50]}  Bxf3 {[%clk 0:02:35]} 9. Nxf3 {[%clk 0:02:49]}  e6 {[%clk 0:02:36]} 10. Bd3 {[%clk 0:02:47]}  Bd6 {[%clk 0:02:35]} 11. Bxd6 {[%clk 0:02:46]}  Qxd6 {[%clk 0:02:36]} 12. O-O {[%clk 0:02:38]}  O-O {[%clk 0:02:36]} 13. Rfe1 {[%clk 0:02:38]}  Nd7 {[%clk 0:02:33]} 14. Qd1 {[%clk 0:02:31]}  Rfe8 {[%clk 0:02:27]} 15. Bxh7+ {[%clk 0:02:24]}  Kxh7 {[%clk 0:02:26]} 16. Ng5+ {[%clk 0:02:23]}  Kg6 {[%clk 0:02:10]} 17. Qg4 {[%clk 0:02:15]}  Nf6 {[%clk 0:02:03]} 18. Qf3 {[%clk 0:01:33]}  Kxg5 {[%clk 0:02:00]} 19. Re3 {[%clk 0:01:16]}  Rh8 {[%clk 0:01:30]} 20. Rae1 {[%clk 0:01:15]}  Qxh2+ {[%clk 0:01:29]} 21. Kf1 {[%clk 0:01:14]}  Qh1+ {[%clk 0:01:26]} 22. Ke2 {[%clk 0:00:51]}  Qh5 {[%clk 0:01:26]} 0-1


[Site "https://www.chess.com"]

[Event "Titled Tuesday Blitz June 27 Late 2023"]
[White "Prydun, Andriy"]
[Black "Cugimura97"]
[WhiteFideId "14145898"]
[WhiteElo "2376"]
[BlackElo "2701"]
[Result "1/2-1/2"]
[Round "1"]
[TimeControl "180+2"]
[Date "2023.06.27"]
[WhiteClock "0:01:40"]
[BlackClock "0:01:08"]
[Board "98"]

1. e4 {[%clk 0:02:59]}  c6 {[%clk 0:03:00]} 2. d4 {[%clk 0:02:58]}  d5 {[%clk 0:03:01]} 3. e5 {[%clk 0:02:58]}  Bf5 {[%clk 0:03:00]} 4. Bd3 {[%clk 0:02:59]}  Bxd3 {[%clk 0:03:00]} 5. cxd3 {[%clk 0:03:00]}  e6 {[%clk 0:03:01]} 6. Nc3 {[%clk 0:02:59]}  Qb6 {[%clk 0:03:01]} 7. Nf3 {[%clk 0:02:57]}  Ne7 {[%clk 0:02:55]} 8. O-O {[%clk 0:02:56]}  Nf5 {[%clk 0:02:55]} 9. Ne2 {[%clk 0:02:56]}  Be7 {[%clk 0:02:53]} 10. Rb1 {[%clk 0:02:53]}  O-O {[%clk 0:02:52]} 11. b4 {[%clk 0:02:53]}  a5 {[%clk 0:02:50]} 12. g4 {[%clk 0:02:52]}  Nh4 {[%clk 0:02:49]} 13. Nxh4 {[%clk 0:02:51]}  Bxh4 {[%clk 0:02:50]} 14. Ba3 {[%clk 0:02:49]}  axb4 {[%clk 0:02:45]} 15. Bxb4 {[%clk 0:02:45]}  Re8 {[%clk 0:02:45]} 16. a3 {[%clk 0:02:33]}  Qa6 {[%clk 0:02:26]} 17. f4 {[%clk 0:02:31]}  Be7 {[%clk 0:02:21]} 18. f5 {[%clk 0:02:29]}  Bxb4 {[%clk 0:02:19]} 19. axb4 {[%clk 0:02:30]}  Nd7 {[%clk 0:02:16]} 20. f6 {[%clk 0:02:28]}  Qa4 {[%clk 0:02:02]} 21. Qd2 {[%clk 0:02:27]}  gxf6 {[%clk 0:01:24]} 22. Qh6 {[%clk 0:02:14]}  Kh8 {[%clk 0:01:21]} 23. Rxf6 {[%clk 0:02:09]}  Nxf6 {[%clk 0:01:20]} 24. Qxf6+ {[%clk 0:02:08]}  Kg8 {[%clk 0:01:19]} 25. Rf1 {[%clk 0:02:02]}  Qxb4 {[%clk 0:01:15]} 26. Qxf7+ {[%clk 0:01:54]}  Kh8 {[%clk 0:01:15]} 27. Qf6+ {[%clk 0:01:54]}  Kg8 {[%clk 0:01:15]} 28. Qg5+ {[%clk 0:01:55]}  Kh8 {[%clk 0:01:08]} 29. Qf6+ {[%clk 0:01:47]}  Kg8 {[%clk 0:01:07]} 30. Qg5+ {[%clk 0:01:48]}  Kh8 {[%clk 0:01:08]} 31. Qf6+ {[%clk 0:01:40]} 1/2-1/2


[Site "https://www.chess.com"]

[Event "Titled Tuesday Blitz June 27 Late 2023"]
[White "Goltsev, Dmitry"]
[Black "K2JW"]
[WhiteFideId "24176710"]
[WhiteElo "2700"]
[BlackElo "2372"]
[Result "1-0"]
[Round "1"]
[TimeControl "180+2"]
[Date "2023.06.27"]
[WhiteClock "0:02:12"]
[BlackClock "0:00:48"]
[Board "99"]

1. e4 {[%clk 0:03:00]}  c5 {[%clk 0:02:59]} 2. Nf3 {[%clk 0:02:59]}  Nc6 {[%clk 0:02:58]} 3. d4 {[%clk 0:02:59]}  cxd4 {[%clk 0:02:59]} 4. Nxd4 {[%clk 0:03:00]}  Nf6 {[%clk 0:02:59]} 5. Nc3 {[%clk 0:03:00]}  d6 {[%clk 0:02:59]} 6. Be2 {[%clk 0:03:00]}  g6 {[%clk 0:02:57]} 7. O-O {[%clk 0:03:00]}  Bg7 {[%clk 0:02:57]} 8. Be3 {[%clk 0:03:00]}  O-O {[%clk 0:02:50]} 9. f4 {[%clk 0:03:00]}  Bd7 {[%clk 0:02:48]} 10. Bf3 {[%clk 0:02:59]}  Nxd4 {[%clk 0:02:40]} 11. Bxd4 {[%clk 0:02:58]}  Bc6 {[%clk 0:02:40]} 12. Qe2 {[%clk 0:02:58]}  Nd7 {[%clk 0:02:40]} 13. Bxg7 {[%clk 0:02:56]}  Kxg7 {[%clk 0:02:41]} 14. Kh1 {[%clk 0:02:56]}  Rc8 {[%clk 0:02:31]} 15. Rad1 {[%clk 0:02:55]}  Qb6 {[%clk 0:02:26]} 16. b3 {[%clk 0:02:52]}  Nc5 {[%clk 0:02:16]} 17. e5 {[%clk 0:02:51]}  Bxf3 {[%clk 0:02:14]} 18. Rxf3 {[%clk 0:02:52]}  dxe5 {[%clk 0:02:13]} 19. Qxe5+ {[%clk 0:02:52]}  Qf6 {[%clk 0:02:13]} 20. Qxf6+ {[%clk 0:02:48]}  exf6 {[%clk 0:02:03]} 21. Nd5 {[%clk 0:02:48]}  Rfe8 {[%clk 0:01:57]} 22. c4 {[%clk 0:02:33]}  Rcd8 {[%clk 0:01:41]} 23. Kg1 {[%clk 0:02:30]}  Re2 {[%clk 0:01:39]} 24. Rf2 {[%clk 0:02:30]}  Re6 {[%clk 0:01:31]} 25. Rfd2 {[%clk 0:02:17]}  Ne4 {[%clk 0:01:21]} 26. Rd4 {[%clk 0:02:16]}  f5 {[%clk 0:01:18]} 27. Nc7 {[%clk 0:02:15]}  Re7 {[%clk 0:00:53]} 28. Rxd8 {[%clk 0:02:12]}  Rxc7 {[%clk 0:00:48]} 29. R1d7 {[%clk 0:02:12]} 1-0


[Site "https://www.chess.com"]

[Event "Titled Tuesday Blitz June 27 Late 2023"]
[White "Cooklev, Steven"]
[Black "Bolourchifard, Farzad"]
[WhiteFideId "2050552"]
[BlackFideId "12510084"]
[WhiteElo "2371"]
[BlackElo "2698"]
[Result "0-1"]
[Round "1"]
[TimeControl "180+2"]
[Date "2023.06.27"]
[WhiteClock "0:00:04"]
[BlackClock "0:01:44"]
[Board "100"]

1. e4 {[%clk 0:02:49]}  e5 {[%clk 0:02:59]} 2. Bc4 {[%clk 0:02:46]}  Nf6 {[%clk 0:02:58]} 3. d3 {[%clk 0:02:46]}  Nc6 {[%clk 0:02:58]} 4. Nc3 {[%clk 0:02:46]}  Bb4 {[%clk 0:02:55]} 5. Ne2 {[%clk 0:02:45]}  d5 {[%clk 0:02:56]} 6. exd5 {[%clk 0:02:46]}  Nxd5 {[%clk 0:02:56]} 7. O-O {[%clk 0:02:47]}  Be6 {[%clk 0:02:55]} 8. Bxd5 {[%clk 0:02:47]}  Bxd5 {[%clk 0:02:54]} 9. f4 {[%clk 0:02:47]}  O-O {[%clk 0:02:53]} 10. f5 {[%clk 0:02:46]}  f6 {[%clk 0:02:53]} 11. Ng3 {[%clk 0:02:35]}  Qd7 {[%clk 0:02:51]} 12. Qg4 {[%clk 0:02:08]}  Bf7 {[%clk 0:02:51]} 13. Bh6 {[%clk 0:02:00]}  Qd4+ {[%clk 0:02:50]} 14. Qxd4 {[%clk 0:01:52]}  exd4 {[%clk 0:02:48]} 15. Nce4 {[%clk 0:01:12]}  gxh6 {[%clk 0:02:47]} 16. Nxf6+ {[%clk 0:01:12]}  Kh8 {[%clk 0:02:42]} 17. Rf4 {[%clk 0:00:38]}  Bd6 {[%clk 0:02:19]} 18. Rh4 {[%clk 0:00:33]}  Be7 {[%clk 0:02:08]} 19. Rxh6 {[%clk 0:00:31]}  Bxf6 {[%clk 0:02:09]} 20. Rxf6 {[%clk 0:00:30]}  Rae8 {[%clk 0:02:09]} 21. a3 {[%clk 0:00:24]}  Kg7 {[%clk 0:02:09]} 22. Rxc6 {[%clk 0:00:19]}  bxc6 {[%clk 0:02:09]} 23. Rf1 {[%clk 0:00:18]}  Bd5 {[%clk 0:02:07]} 24. Rf4 {[%clk 0:00:18]}  Re1+ {[%clk 0:02:06]} 25. Kf2 {[%clk 0:00:18]}  Rc1 {[%clk 0:02:07]} 26. Rxd4 {[%clk 0:00:18]}  Rxc2+ {[%clk 0:02:07]} 27. Ke3 {[%clk 0:00:17]}  Re8+ {[%clk 0:02:07]} 28. Kf4 {[%clk 0:00:18]}  Rxg2 {[%clk 0:02:04]} 29. Nh5+ {[%clk 0:00:16]}  Kh6 {[%clk 0:02:04]} 30. Nf6 {[%clk 0:00:15]}  Rf8 {[%clk 0:02:04]} 31. Nxd5 {[%clk 0:00:12]}  cxd5 {[%clk 0:02:01]} 32. Rxd5 {[%clk 0:00:12]}  Rxb2 {[%clk 0:02:00]} 33. Ke5 {[%clk 0:00:10]}  Re2+ {[%clk 0:01:58]} 34. Kd4 {[%clk 0:00:09]}  Rxh2 {[%clk 0:01:58]} 35. Kc5 {[%clk 0:00:09]}  Rc2+ {[%clk 0:01:58]} 36. Kb5 {[%clk 0:00:09]}  Rb8+ {[%clk 0:01:58]} 37. Ka4 {[%clk 0:00:08]}  Kg5 {[%clk 0:01:53]} 38. d4 {[%clk 0:00:08]}  h5 {[%clk 0:01:52]} 39. f6+ {[%clk 0:00:08]}  Kxf6 {[%clk 0:01:53]} 40. Rxh5 {[%clk 0:00:09]}  Rc4+ {[%clk 0:01:53]} 41. Ka5 {[%clk 0:00:09]}  Rxd4 {[%clk 0:01:54]} 42. Rc5 {[%clk 0:00:08]}  Rb7 {[%clk 0:01:49]} 43. a4 {[%clk 0:00:09]}  Ke6 {[%clk 0:01:46]} 44. Rc6+ {[%clk 0:00:09]}  Kd7 {[%clk 0:01:46]} 45. Rc5 {[%clk 0:00:09]}  Rd6 {[%clk 0:01:44]} 46. Rxc7+ {[%clk 0:00:04]}  Rxc7 {[%clk 0:01:44]} 0-1


[Site "https://www.chess.com"]

[Event "Titled Tuesday Blitz June 27 Late 2023"]
[White "Korchmar, Vasiliy"]
[Black "Fernandez Siles, Luis"]
[WhiteFideId "24131750"]
[BlackFideId "2209420"]
[WhiteElo "2686"]
[BlackElo "2364"]
[Result "1-0"]
[Round "1"]
[TimeControl "180+2"]
[Date "2023.06.27"]
[WhiteClock "0:01:18"]
[BlackClock "0:01:10"]
[Board "103"]

1. e4 {[%clk 0:03:00]}  c5 {[%clk 0:02:58]} 2. d4 {[%clk 0:03:00]}  cxd4 {[%clk 0:02:58]} 3. Qxd4 {[%clk 0:03:01]}  Nc6 {[%clk 0:02:55]} 4. Qd3 {[%clk 0:03:02]}  Nf6 {[%clk 0:02:54]} 5. Nc3 {[%clk 0:03:02]}  d6 {[%clk 0:02:53]} 6. Nf3 {[%clk 0:03:00]}  g6 {[%clk 0:02:53]} 7. Be2 {[%clk 0:03:00]}  Bg7 {[%clk 0:02:53]} 8. O-O {[%clk 0:03:01]}  O-O {[%clk 0:02:53]} 9. Nd5 {[%clk 0:03:01]}  Bg4 {[%clk 0:02:48]} 10. Bg5 {[%clk 0:02:48]}  Bxf3 {[%clk 0:02:41]} 11. Qxf3 {[%clk 0:02:41]}  Nd4 {[%clk 0:02:38]} 12. Qd3 {[%clk 0:02:36]}  Nxe2+ {[%clk 0:02:36]} 13. Qxe2 {[%clk 0:02:35]}  e6 {[%clk 0:02:23]} 14. Nxf6+ {[%clk 0:02:08]}  Bxf6 {[%clk 0:02:24]} 15. Bxf6 {[%clk 0:02:09]}  Qxf6 {[%clk 0:02:23]} 16. c3 {[%clk 0:02:10]}  Rfd8 {[%clk 0:02:11]} 17. Rad1 {[%clk 0:02:08]}  Qe5 {[%clk 0:02:08]} 18. f4 {[%clk 0:02:05]}  Qc5+ {[%clk 0:02:06]} 19. Kh1 {[%clk 0:02:05]}  d5 {[%clk 0:02:06]} 20. f5 {[%clk 0:01:56]}  dxe4 {[%clk 0:02:02]} 21. fxe6 {[%clk 0:01:55]}  fxe6 {[%clk 0:01:49]} 22. Qxe4 {[%clk 0:01:54]}  Rxd1 {[%clk 0:01:45]} 23. Qxe6+ {[%clk 0:01:52]}  Kh8 {[%clk 0:01:44]} 24. Rxd1 {[%clk 0:01:53]}  Rf8 {[%clk 0:01:37]} 25. h3 {[%clk 0:01:52]}  Qf5 {[%clk 0:01:32]} 26. Qxf5 {[%clk 0:01:47]}  Rxf5 {[%clk 0:01:31]} 27. Rd8+ {[%clk 0:01:47]}  Kg7 {[%clk 0:01:30]} 28. Rd7+ {[%clk 0:01:47]}  Rf7 {[%clk 0:01:24]} 29. Rxf7+ {[%clk 0:01:47]}  Kxf7 {[%clk 0:01:25]} 30. g4 {[%clk 0:01:33]}  Ke6 {[%clk 0:01:25]} 31. Kg2 {[%clk 0:01:34]}  Kd5 {[%clk 0:01:25]} 32. Kf3 {[%clk 0:01:32]}  b5 {[%clk 0:01:23]} 33. b3 {[%clk 0:01:28]}  a5 {[%clk 0:01:21]} 34. g5 {[%clk 0:01:22]}  Ke5 {[%clk 0:01:15]} 35. Ke3 {[%clk 0:01:19]}  Kf5 {[%clk 0:01:15]} 36. h4 {[%clk 0:01:18]}  Ke5 {[%clk 0:01:14]} 37. c4 {[%clk 0:01:18]}  bxc4 {[%clk 0:01:13]} 38. bxc4 {[%clk 0:01:19]}  a4 {[%clk 0:01:12]} 39. Kd3 {[%clk 0:01:18]}  a3 {[%clk 0:01:12]} 40. Kc3 {[%clk 0:01:18]}  Kd6 {[%clk 0:01:10]} 41. Kb4 {[%clk 0:01:18]} 1-0


[Site "https://www.chess.com"]

[Event "Titled Tuesday Blitz June 27 Late 2023"]
[White "Goryachkina, Aleksandra"]
[Black "Guzman Moneo, Alberto"]
[WhiteFideId "4147103"]
[BlackFideId "2209616"]
[WhiteElo "2682"]
[BlackElo "2360"]
[Result "1-0"]
[Round "1"]
[TimeControl "180+2"]
[Date "2023.06.27"]
[WhiteClock "0:00:47"]
[BlackClock "0:00:00"]
[Board "105"]

1. e4 {[%clk 0:02:59]}  e6 {[%clk 0:02:59]} 2. d4 {[%clk 0:02:58]}  d5 {[%clk 0:03:00]} 3. Nd2 {[%clk 0:02:57]}  dxe4 {[%clk 0:02:50]} 4. Nxe4 {[%clk 0:02:56]}  Nd7 {[%clk 0:02:51]} 5. Nf3 {[%clk 0:02:52]}  Ngf6 {[%clk 0:02:51]} 6. Nxf6+ {[%clk 0:02:50]}  Nxf6 {[%clk 0:02:52]} 7. g3 {[%clk 0:02:42]}  c5 {[%clk 0:02:45]} 8. Bg2 {[%clk 0:02:39]}  cxd4 {[%clk 0:02:46]} 9. O-O {[%clk 0:02:20]}  Bc5 {[%clk 0:02:40]} 10. Bf4 {[%clk 0:02:13]}  O-O {[%clk 0:02:28]} 11. Be5 {[%clk 0:02:12]}  d3 {[%clk 0:02:24]} 12. cxd3 {[%clk 0:02:07]}  Bd7 {[%clk 0:02:18]} 13. Rc1 {[%clk 0:02:06]}  Rc8 {[%clk 0:01:53]} 14. Nd2 {[%clk 0:01:58]}  b6 {[%clk 0:01:46]} 15. d4 {[%clk 0:01:29]}  Be7 {[%clk 0:01:30]} 16. Qb3 {[%clk 0:01:28]}  Ng4 {[%clk 0:01:18]} 17. Bf4 {[%clk 0:01:25]}  Bg5 {[%clk 0:01:08]} 18. Rxc8 {[%clk 0:01:13]}  Bxc8 {[%clk 0:01:09]} 19. Bxg5 {[%clk 0:01:13]}  Qxg5 {[%clk 0:01:08]} 20. Nf3 {[%clk 0:01:13]}  Qa5 {[%clk 0:00:54]} 21. h3 {[%clk 0:01:11]}  Nf6 {[%clk 0:00:51]} 22. Ne5 {[%clk 0:01:11]}  Ba6 {[%clk 0:00:43]} 23. Rc1 {[%clk 0:01:06]}  Nd5 {[%clk 0:00:19]} 24. Nc6 {[%clk 0:00:58]}  Qd2 {[%clk 0:00:12]} 25. Rd1 {[%clk 0:00:58]}  Qg5 {[%clk 0:00:07]} 26. h4 {[%clk 0:00:55]}  Qh5 {[%clk 0:00:00]} 27. Bf3 {[%clk 0:00:47]} 1-0


[Site "https://www.chess.com"]

[Event "Titled Tuesday Blitz June 27 Late 2023"]
[White "Castella Garcia, Fausto"]
[Black "Fernandez Guillen, Ernesto J."]
[WhiteFideId "3501922"]
[BlackFideId "3512428"]
[WhiteElo "2357"]
[BlackElo "2682"]
[Result "0-1"]
[Round "1"]
[TimeControl "180+2"]
[Date "2023.06.27"]
[WhiteClock "0:00:19"]
[BlackClock "0:00:18"]
[Board "106"]

1. e4 {[%clk 0:02:58]}  e5 {[%clk 0:02:56]} 2. Nf3 {[%clk 0:02:57]}  Nc6 {[%clk 0:02:56]} 3. Bb5 {[%clk 0:02:56]}  f5 {[%clk 0:02:49]} 4. Bxc6 {[%clk 0:02:55]}  bxc6 {[%clk 0:02:45]} 5. Nxe5 {[%clk 0:02:47]}  Qe7 {[%clk 0:02:43]} 6. d4 {[%clk 0:02:44]}  Nf6 {[%clk 0:02:42]} 7. Nc3 {[%clk 0:02:34]}  Ba6 {[%clk 0:02:29]} 8. Bg5 {[%clk 0:02:25]}  O-O-O {[%clk 0:02:22]} 9. f3 {[%clk 0:01:52]}  fxe4 {[%clk 0:02:19]} 10. fxe4 {[%clk 0:01:50]}  Qb4 {[%clk 0:02:16]} 11. Bxf6 {[%clk 0:01:40]}  gxf6 {[%clk 0:02:17]} 12. Nf7 {[%clk 0:01:32]}  Rg8 {[%clk 0:02:11]} 13. Qf3 {[%clk 0:01:06]}  Re8 {[%clk 0:02:00]} 14. O-O-O {[%clk 0:01:05]}  Rg6 {[%clk 0:01:45]} 15. Kb1 {[%clk 0:00:49]}  Qe7 {[%clk 0:01:41]} 16. Nh8 {[%clk 0:00:47]}  Rg8 {[%clk 0:01:40]} 17. e5 {[%clk 0:00:42]}  Rxh8 {[%clk 0:01:40]} 18. exf6 {[%clk 0:00:42]}  Qf7 {[%clk 0:01:41]} 19. Ne4 {[%clk 0:00:39]}  Bc4 {[%clk 0:01:34]} 20. Rhe1 {[%clk 0:00:35]}  Bxa2+ {[%clk 0:01:32]} 21. Ka1 {[%clk 0:00:35]}  Bd5 {[%clk 0:01:33]} 22. Qd3 {[%clk 0:00:34]}  Rxe4 {[%clk 0:01:25]} 23. Rxe4 {[%clk 0:00:33]}  Bxe4 {[%clk 0:01:26]} 24. Qxe4 {[%clk 0:00:33]}  Qxf6 {[%clk 0:01:22]} 25. Qe8+ {[%clk 0:00:33]}  Kb7 {[%clk 0:01:22]} 26. Rd3 {[%clk 0:00:33]}  Bc5 {[%clk 0:00:46]} 27. Qxd7 {[%clk 0:00:30]}  Rd8 {[%clk 0:00:45]} 28. Qxh7 {[%clk 0:00:29]}  Rxd4 {[%clk 0:00:44]} 29. Rxd4 {[%clk 0:00:28]}  Bxd4 {[%clk 0:00:45]} 30. c3 {[%clk 0:00:28]}  Be5 {[%clk 0:00:42]} 31. Qh5 {[%clk 0:00:26]}  a5 {[%clk 0:00:41]} 32. h4 {[%clk 0:00:26]}  a4 {[%clk 0:00:41]} 33. Qg4 {[%clk 0:00:26]}  Qf1+ {[%clk 0:00:26]} 34. Ka2 {[%clk 0:00:24]}  Qf7+ {[%clk 0:00:26]} 35. Ka1 {[%clk 0:00:24]}  Qb3 {[%clk 0:00:23]} 36. Qb4+ {[%clk 0:00:24]}  Qxb4 {[%clk 0:00:23]} 37. cxb4 {[%clk 0:00:25]}  a3 {[%clk 0:00:24]} 38. g4 {[%clk 0:00:24]}  axb2+ {[%clk 0:00:24]} 39. Kb1 {[%clk 0:00:25]}  Kc8 {[%clk 0:00:21]} 40. g5 {[%clk 0:00:24]}  Kd7 {[%clk 0:00:19]} 41. h5 {[%clk 0:00:25]}  Ke6 {[%clk 0:00:19]} 42. h6 {[%clk 0:00:24]}  Kf5 {[%clk 0:00:18]} 43. b5 {[%clk 0:00:19]}  cxb5 {[%clk 0:00:18]} 0-1


[Site "https://www.chess.com"]

[Event "Titled Tuesday Blitz June 27 Late 2023"]
[White "Alex_Sahakyan2006"]
[Black "Wendt, Jan-Dietrich"]
[BlackFideId "4623797"]
[WhiteElo "2672"]
[BlackElo "2355"]
[Result "1-0"]
[Round "1"]
[TimeControl "180+2"]
[Date "2023.06.27"]
[WhiteClock "0:00:05"]
[BlackClock "0:00:08"]
[Board "109"]

1. d4 {[%clk 0:02:48]}  Nf6 {[%clk 0:02:58]} 2. c4 {[%clk 0:02:48]}  g6 {[%clk 0:02:59]} 3. Nc3 {[%clk 0:02:48]}  Bg7 {[%clk 0:03:00]} 4. e4 {[%clk 0:02:48]}  d6 {[%clk 0:03:00]} 5. f4 {[%clk 0:02:49]}  c5 {[%clk 0:02:59]} 6. d5 {[%clk 0:02:48]}  O-O {[%clk 0:02:58]} 7. Nf3 {[%clk 0:02:48]}  e6 {[%clk 0:02:59]} 8. Be2 {[%clk 0:02:48]}  exd5 {[%clk 0:02:58]} 9. cxd5 {[%clk 0:02:49]}  Nbd7 {[%clk 0:02:58]} 10. O-O {[%clk 0:02:48]}  Re8 {[%clk 0:02:59]} 11. Qc2 {[%clk 0:02:48]}  a6 {[%clk 0:02:56]} 12. a4 {[%clk 0:02:48]}  Qc7 {[%clk 0:02:54]} 13. Kh1 {[%clk 0:02:47]}  c4 {[%clk 0:02:53]} 14. a5 {[%clk 0:02:29]}  Nc5 {[%clk 0:02:45]} 15. e5 {[%clk 0:02:29]}  Bf5 {[%clk 0:02:38]} 16. Qd1 {[%clk 0:02:27]}  Nfe4 {[%clk 0:02:29]} 17. Nxe4 {[%clk 0:02:10]}  Nxe4 {[%clk 0:02:28]} 18. Ra4 {[%clk 0:02:05]}  c3 {[%clk 0:02:25]} 19. g4 {[%clk 0:01:43]}  Nc5 {[%clk 0:02:05]} 20. gxf5 {[%clk 0:01:41]}  Nxa4 {[%clk 0:02:05]} 21. Qxa4 {[%clk 0:01:42]}  dxe5 {[%clk 0:01:58]} 22. fxg6 {[%clk 0:01:37]}  hxg6 {[%clk 0:01:54]} 23. fxe5 {[%clk 0:01:35]}  Bxe5 {[%clk 0:01:53]} 24. bxc3 {[%clk 0:01:10]}  Bxc3 {[%clk 0:01:40]} 25. Bd3 {[%clk 0:01:07]}  Qxa5 {[%clk 0:01:24]} 26. Qxa5 {[%clk 0:00:53]}  Bxa5 {[%clk 0:01:23]} 27. Ng5 {[%clk 0:00:39]}  Re1 {[%clk 0:01:20]} 28. Rxe1 {[%clk 0:00:38]}  Bxe1 {[%clk 0:01:21]} 29. d6 {[%clk 0:00:36]}  Rd8 {[%clk 0:01:13]} 30. Ba3 {[%clk 0:00:34]}  b5 {[%clk 0:01:12]} 31. Bc5 {[%clk 0:00:32]}  Bd2 {[%clk 0:00:50]} 32. Ne4 {[%clk 0:00:12]}  Bf4 {[%clk 0:00:37]} 33. Bb6 {[%clk 0:00:12]}  Rxd6 {[%clk 0:00:29]} 34. Nxd6 {[%clk 0:00:12]}  Bxd6 {[%clk 0:00:29]} 35. h3 {[%clk 0:00:13]}  Kf8 {[%clk 0:00:28]} 36. Kg2 {[%clk 0:00:13]}  Ke7 {[%clk 0:00:28]} 37. Kf3 {[%clk 0:00:13]}  f5 {[%clk 0:00:26]} 38. Ba5 {[%clk 0:00:08]}  Kd7 {[%clk 0:00:22]} 39. Bc2 {[%clk 0:00:05]}  Bc7 {[%clk 0:00:22]} 40. Bd2 {[%clk 0:00:03]}  a5 {[%clk 0:00:20]} 41. Bb3 {[%clk 0:00:04]}  Ke7 {[%clk 0:00:17]} 42. Bg5+ {[%clk 0:00:04]}  Kf8 {[%clk 0:00:17]} 43. Bd5 {[%clk 0:00:03]}  b4 {[%clk 0:00:14]} 44. Bb3 {[%clk 0:00:02]}  Kg7 {[%clk 0:00:12]} 45. Ke2 {[%clk 0:00:02]}  Be5 {[%clk 0:00:12]} 46. Kd3 {[%clk 0:00:02]}  Bf6 {[%clk 0:00:12]} 47. Be3 {[%clk 0:00:02]}  g5 {[%clk 0:00:11]} 48. Bb6 {[%clk 0:00:03]}  g4 {[%clk 0:00:11]} 49. hxg4 {[%clk 0:00:03]}  fxg4 {[%clk 0:00:11]} 50. Bxa5 {[%clk 0:00:04]}  Be7 {[%clk 0:00:11]} 51. Bd5 {[%clk 0:00:03]}  Kf6 {[%clk 0:00:12]} 52. Ke3 {[%clk 0:00:02]}  Kg5 {[%clk 0:00:12]} 53. Kf2 {[%clk 0:00:02]}  Kh4 {[%clk 0:00:12]} 54. Kg2 {[%clk 0:00:02]}  Bc5 {[%clk 0:00:12]} 55. Bd8+ {[%clk 0:00:02]}  Kh5 {[%clk 0:00:12]} 56. Bf7+ {[%clk 0:00:02]}  Kh6 {[%clk 0:00:12]} 57. Be6 {[%clk 0:00:03]}  Kg6 {[%clk 0:00:12]} 58. Bxg4 {[%clk 0:00:02]}  Bd4 {[%clk 0:00:10]} 59. Bd1 {[%clk 0:00:03]}  Bc3 {[%clk 0:00:11]} 60. Be7 {[%clk 0:00:03]}  Kf5 {[%clk 0:00:12]} 61. Kf3 {[%clk 0:00:03]}  Ke6 {[%clk 0:00:11]} 62. Bf8 {[%clk 0:00:03]}  Kd5 {[%clk 0:00:12]} 63. Bb3+ {[%clk 0:00:02]}  Kd4 {[%clk 0:00:12]} 64. Ke2 {[%clk 0:00:03]}  Ke4 {[%clk 0:00:11]} 65. Be7 {[%clk 0:00:02]}  Kd4 {[%clk 0:00:12]} 66. Bc2 {[%clk 0:00:03]}  Kc4 {[%clk 0:00:12]} 67. Bg6 {[%clk 0:00:02]}  b3 {[%clk 0:00:13]} 68. Bf7+ {[%clk 0:00:02]}  Kb5 {[%clk 0:00:12]} 69. Bxb3 {[%clk 0:00:03]}  Bb4 {[%clk 0:00:12]} 70. Bg5 {[%clk 0:00:04]}  Bc5 {[%clk 0:00:12]} 71. Kd3 {[%clk 0:00:04]}  Bb4 {[%clk 0:00:13]} 72. Bc4+ {[%clk 0:00:04]}  Kc5 {[%clk 0:00:12]} 73. Be7+ {[%clk 0:00:04]}  Kb6 {[%clk 0:00:08]} 74. Bxb4 {[%clk 0:00:05]} 1-0


[Site "https://www.chess.com"]

[Event "Titled Tuesday Blitz June 27 Late 2023"]
[White "Glavina, Pablo"]
[Black "Rosen, Eric"]
[WhiteFideId "100234"]
[BlackFideId "2032562"]
[WhiteElo "2352"]
[BlackElo "2672"]
[Result "0-1"]
[Round "1"]
[TimeControl "180+2"]
[Date "2023.06.27"]
[WhiteClock "0:01:21"]
[BlackClock "0:00:12"]
[Board "110"]

1. c4 {[%clk 0:02:59]}  e6 {[%clk 0:02:59]} 2. g3 {[%clk 0:02:57]}  d5 {[%clk 0:02:59]} 3. Bg2 {[%clk 0:02:55]}  Nf6 {[%clk 0:03:00]} 4. Nf3 {[%clk 0:02:52]}  Bd6 {[%clk 0:02:55]} 5. O-O {[%clk 0:02:47]}  O-O {[%clk 0:02:53]} 6. d4 {[%clk 0:02:41]}  Nc6 {[%clk 0:02:52]} 7. Nc3 {[%clk 0:02:34]}  dxc4 {[%clk 0:02:48]} 8. Qa4 {[%clk 0:02:23]}  e5 {[%clk 0:02:44]} 9. dxe5 {[%clk 0:02:11]}  Nxe5 {[%clk 0:02:44]} 10. Nxe5 {[%clk 0:02:10]}  Bxe5 {[%clk 0:02:45]} 11. Qxc4 {[%clk 0:02:11]}  c6 {[%clk 0:02:44]} 12. Rd1 {[%clk 0:02:08]}  Qe7 {[%clk 0:02:40]} 13. Be3 {[%clk 0:02:08]}  Re8 {[%clk 0:02:29]} 14. Rac1 {[%clk 0:02:00]}  Be6 {[%clk 0:02:26]} 15. Qh4 {[%clk 0:01:55]}  h6 {[%clk 0:02:20]} 16. b3 {[%clk 0:01:43]}  Rad8 {[%clk 0:02:14]} 17. Rxd8 {[%clk 0:01:29]}  Rxd8 {[%clk 0:02:14]} 18. Bxa7 {[%clk 0:01:29]}  Bxc3 {[%clk 0:01:31]} 19. Rxc3 {[%clk 0:01:28]}  Rd1+ {[%clk 0:01:32]} 20. Bf1 {[%clk 0:01:29]}  Nd5 {[%clk 0:00:24]} 21. Qxe7 {[%clk 0:01:28]}  Nxe7 {[%clk 0:00:25]} 22. Rd3 {[%clk 0:01:29]}  Ra1 {[%clk 0:00:19]} 23. Kg2 {[%clk 0:01:29]}  Rxa2 {[%clk 0:00:13]} 24. e4 {[%clk 0:01:21]}  Rxa7 {[%clk 0:00:12]} 0-1


[Site "https://www.chess.com"]